[Event "Masterklassen-Elit 2025"]
[Site "Uppsala, Sweden"]
[Date "2025.07.06"]
[Round "9.3"]
[White "Wiedenkeller, Michael"]
[Black "Andersson, Tommy"]
[Result "1/2-1/2"]
[TimeControl "90 min for 40 move + 30 min with an increment of 30 sec starting move 1"]
[WhiteTitle "IM"]
[BlackTitle "IM"]
[WhiteFideId "1700146"]
[BlackFideId "1703803"]
[WhiteElo "2384"]
[BlackElo "2348"]

1. c4 {[%clk 01:30:40]} {[%emt 00:00:18]} e5 {[%clk 01:30:46]} {[%emt
00:00:14]} 2. Nc3 {[%clk 01:31:02]} {[%emt 00:00:09]} f5 {[%clk 01:30:40]}
{[%emt 00:00:35]} 3. d4 {[%clk 01:29:41]} {[%emt 00:01:51]} exd4 {[%clk
01:31:05]} {[%emt 00:00:06]} 4. Qxd4 {[%clk 01:29:52]} {[%emt 00:00:19]} Nc6
{[%clk 01:31:26]} {[%emt 00:00:09]} 5. Qe3+ {[%clk 01:27:39]} {[%emt 00:02:42]}
Qe7 {[%clk 01:31:26]} {[%emt 00:00:31]} 6. Nd5 {[%clk 01:24:12]} {[%emt
00:03:56]} Qxe3 {[%clk 01:31:49]} {[%emt 00:00:08]} 7. Bxe3 {[%clk 01:24:19]}
{[%emt 00:00:23]} Bb4+ {[%clk 01:31:13]} {[%emt 00:01:05]} 8. Bd2 {[%clk
01:14:36]} {[%emt 00:10:14]} Bxd2+ {[%clk 01:31:17]} {[%emt 00:00:26]} 9. Kxd2
{[%clk 01:14:59]} {[%emt 00:00:06]} Kd8 {[%clk 01:31:36]} {[%emt 00:00:11]} 10.
Nf3 {[%clk 01:11:12]} {[%emt 00:04:17]} h6 {[%clk 01:31:39]} {[%emt 00:00:27]}
11. h4 {[%clk 01:07:15]} {[%emt 00:04:27]} d6 {[%clk 01:31:10]} {[%emt
00:00:59]} 12. e3 {[%clk 01:05:05]} {[%emt 00:02:41]} Nge7 {[%clk 01:29:13]}
{[%emt 00:02:27]} 13. Rd1 {[%clk 00:57:34]} {[%emt 00:08:01]} g6 {[%clk
01:26:06]} {[%emt 00:03:37]} 14. Kc3 {[%clk 00:54:01]} {[%emt 00:04:02]} Nxd5+
{[%clk 01:25:05]} {[%emt 00:01:31]} 15. cxd5 {[%clk 00:51:18]} {[%emt
00:03:14]} Ne5 {[%clk 01:24:01]} {[%emt 00:01:34]} 16. Nxe5 {[%clk 00:45:50]}
{[%emt 00:05:58]} dxe5 {[%clk 01:24:26]} {[%emt 00:00:04]} 17. d6 {[%clk
00:43:44]} {[%emt 00:02:38]} Be6 {[%clk 01:22:36]} {[%emt 00:02:18]} 18. Bc4
{[%clk 00:32:00]} {[%emt 00:12:15]} Bxc4 {[%clk 01:18:52]} {[%emt 00:04:13]} 19.
dxc7+ {[%clk 00:24:57]} {[%emt 00:07:34]} Kxc7 {[%clk 01:17:28]} {[%emt
00:01:53]} 20. Kxc4 {[%clk 00:25:22]} {[%emt 00:00:06]} Rhd8 {[%clk 01:12:25]}
{[%emt 00:05:33]} 21. f4 {[%clk 00:18:13]} {[%emt 00:07:39]} Rxd1 {[%clk
01:09:22]} {[%emt 00:03:33]} 22. Rxd1 {[%clk 00:18:38]} {[%emt 00:00:04]} exf4
{[%clk 01:09:41]} {[%emt 00:00:11]} 23. exf4 {[%clk 00:18:05]} {[%emt
00:01:04]} 1/2-1/2

[Event "Masterklassen-Elit 2025"]
[Site "Uppsala, Sweden"]
[Date "2025.07.06"]
[Round "9.4"]
[White "Carlsson, Ludvig"]
[Black "Olsson, William"]
[Result "1-0"]
[TimeControl "90 min for 40 move + 30 min with an increment of 30 sec starting move 1"]
[WhiteTitle "IM"]
[BlackTitle "IM"]
[WhiteFideId "1727010"]
[BlackFideId "1741721"]
[WhiteElo "2379"]
[BlackElo "2365"]

1. e4 {[%clk 01:29:46]} {[%emt 00:01:13]} e5 {[%clk 01:30:53]} {[%emt
00:00:07]} 2. Nf3 {[%clk 01:30:09]} {[%emt 00:00:08]} Nc6 {[%clk 01:31:18]}
{[%emt 00:00:05]} 3. Nc3 {[%clk 01:30:32]} {[%emt 00:00:07]} Nf6 {[%clk
01:29:58]} {[%emt 00:01:49]} 4. d4 {[%clk 01:30:54]} {[%emt 00:00:09]} exd4
{[%clk 01:30:05]} {[%emt 00:00:23]} 5. Nxd4 {[%clk 01:31:18]} {[%emt 00:00:05]}
Bb4 {[%clk 01:28:33]} {[%emt 00:02:02]} 6. Nxc6 {[%clk 01:31:05]} {[%emt
00:00:45]} bxc6 {[%clk 01:29:00]} {[%emt 00:00:02]} 7. Bd3 {[%clk 01:31:22]}
{[%emt 00:00:12]} d5 {[%clk 01:24:43]} {[%emt 00:04:49]} 8. Bd2 {[%clk
01:31:41]} {[%emt 00:00:10]} O-O {[%clk 01:19:07]} {[%emt 00:06:05]} 9. O-O
{[%clk 01:32:06]} {[%emt 00:00:06]} Bxc3 {[%clk 01:10:30]} {[%emt 00:09:08]} 10.
Bxc3 {[%clk 01:32:30]} {[%emt 00:00:04]} Nxe4 {[%clk 01:10:20]} {[%emt
00:00:42]} 11. Bxe4 {[%clk 01:32:48]} {[%emt 00:00:10]} dxe4 {[%clk 01:10:44]}
{[%emt 00:00:06]} 12. Re1 {[%clk 01:33:11]} {[%emt 00:00:08]} Bf5 {[%clk
01:08:16]} {[%emt 00:02:58]} 13. Qh5 {[%clk 01:33:23]} {[%emt 00:00:16]} Bg6
{[%clk 01:07:37]} {[%emt 00:01:11]} 14. Qa5 {[%clk 01:33:43]} {[%emt 00:00:10]}
Qc8 {[%clk 01:02:56]} {[%emt 00:05:11]} 15. Rad1 {[%clk 01:29:59]} {[%emt
00:04:13]} f6 {[%clk 00:55:17]} {[%emt 00:08:10]} 16. Bd4 {[%clk 01:20:24]}
{[%emt 00:10:04]} Rd8 {[%clk 00:53:14]} {[%emt 00:02:35]} 17. Be3 {[%clk
01:19:04]} {[%emt 00:01:49]} Qb7 {[%clk 00:50:27]} {[%emt 00:03:18]} 18. Rxd8+
{[%clk 01:15:52]} {[%emt 00:03:41]} Rxd8 {[%clk 00:50:22]} {[%emt 00:00:34]} 19.
Qxa7 {[%clk 01:16:02]} {[%emt 00:00:21]} Qxa7 {[%clk 00:47:09]} {[%emt
00:03:43]} 20. Bxa7 {[%clk 01:16:06]} {[%emt 00:00:26]} Rd2 {[%clk 00:47:37]}
{[%emt 00:00:02]} 21. Rc1 {[%clk 01:03:48]} {[%emt 00:12:48]} e3 {[%clk
00:47:28]} {[%emt 00:00:39]} 22. Bxe3 {[%clk 01:04:10]} {[%emt 00:00:08]} Rxc2
{[%clk 00:47:53]} {[%emt 00:00:06]} 23. Rxc2 {[%clk 01:04:19]} {[%emt
00:00:21]} Bxc2 {[%clk 00:48:21]} {[%emt 00:00:02]} 24. Bf4 {[%clk 01:03:14]}
{[%emt 00:01:34]} Kf7 {[%clk 00:48:40]} {[%emt 00:00:12]} 25. Bxc7 {[%clk
01:03:36]} {[%emt 00:00:08]} Ke6 {[%clk 00:47:29]} {[%emt 00:01:40]} 26. Ba5
{[%clk 00:55:28]} {[%emt 00:08:38]} g5 {[%clk 00:38:15]} {[%emt 00:09:44]} 27.
Kf1 {[%clk 00:48:24]} {[%emt 00:07:34]} Be4 {[%clk 00:37:09]} {[%emt 00:01:36]}
28. Bd8 {[%clk 00:45:12]} {[%emt 00:03:42]} h5 {[%clk 00:35:01]} {[%emt
00:02:38]} 29. a4 {[%clk 00:44:34]} {[%emt 00:01:08]} g4 {[%clk 00:32:36]}
{[%emt 00:02:55]} 30. g3 {[%clk 00:41:02]} {[%emt 00:04:02]} Bc2 {[%clk
00:28:43]} {[%emt 00:04:23]} 31. a5 {[%clk 00:41:26]} {[%emt 00:00:06]} Bd3+
{[%clk 00:29:06]} {[%emt 00:00:07]} 32. Ke1 {[%clk 00:41:50]} {[%emt 00:00:05]}
c5 {[%clk 00:29:14]} {[%emt 00:00:23]} 33. Kd2 {[%clk 00:42:09]} {[%emt
00:00:11]} Ba6 {[%clk 00:29:36]} {[%emt 00:00:09]} 34. Ke3 {[%clk 00:41:04]}
{[%emt 00:01:34]} Ke5 {[%clk 00:27:42]} {[%emt 00:02:24]} 35. Be7 {[%clk
00:37:38]} {[%emt 00:03:55]} c4 {[%clk 00:26:52]} {[%emt 00:01:21]} 36. Bb4
{[%clk 00:37:42]} {[%emt 00:00:25]} f5 {[%clk 00:24:11]} {[%emt 00:03:12]} 37.
Bc3+ {[%clk 00:38:04]} {[%emt 00:00:07]} Kd5 {[%clk 00:24:38]} {[%emt
00:00:04]} 38. Kf4 {[%clk 00:38:15]} {[%emt 00:00:18]} Bc8 {[%clk 00:25:03]}
{[%emt 00:00:06]} 39. Kg5 {[%clk 00:38:02]} {[%emt 00:00:42]} Ke4 {[%clk
00:25:29]} {[%emt 00:00:05]} 40. Kxh5 {[%clk 00:33:30]} {[%emt 00:05:02]} f4
{[%clk 00:21:06]} {[%emt 00:04:52]} 41. a6 {[%clk 00:32:27]} {[%emt 00:01:34]}
fxg3 {[%clk 00:21:16]} {[%emt 00:00:21]} 42. fxg3 {[%clk 00:32:30]} {[%emt
00:00:26]} Kf5 {[%clk 00:21:29]} {[%emt 00:00:16]} 43. a7 {[%clk 00:32:49]}
{[%emt 00:00:12]} Bb7 {[%clk 00:21:22]} {[%emt 00:00:38]} 44. Kh4 {[%clk
00:33:13]} {[%emt 00:00:04]} Bg2 {[%clk 00:21:30]} {[%emt 00:00:22]} 45. Bd2
{[%clk 00:33:31]} {[%emt 00:00:12]} 1-0

[Event "Masterklassen-Elit 2025"]
[Site "Uppsala, Sweden"]
[Date "2025.07.06"]
[Round "9.5"]
[White "Thorn, Eric"]
[Black "Lindberg, Bengt"]
[Result "1-0"]
[TimeControl "90 min for 40 move + 30 min with an increment of 30 sec starting move 1"]
[WhiteTitle "FM"]
[BlackTitle "IM"]
[WhiteFideId "1710729"]
[BlackFideId "1700359"]
[WhiteElo "2357"]
[BlackElo "2334"]

1. d4 {[%clk 01:30:59]} Nf6 {[%clk 01:30:54]} {[%emt 00:00:06]} 2. c4 {[%clk
01:31:24]} {[%emt 00:00:05]} e6 {[%clk 01:31:20]} {[%emt 00:00:04]} 3. Nf3
{[%clk 01:31:49]} {[%emt 00:00:05]} b6 {[%clk 01:31:34]} {[%emt 00:00:16]} 4.
a3 {[%clk 01:32:13]} {[%emt 00:00:07]} c5 {[%clk 01:27:50]} {[%emt 00:04:12]} 5.
d5 {[%clk 01:30:25]} {[%emt 00:02:19]} exd5 {[%clk 01:27:53]} {[%emt 00:00:28]}
6. cxd5 {[%clk 01:30:47]} {[%emt 00:00:08]} d6 {[%clk 01:27:58]} {[%emt
00:00:23]} 7. Nc3 {[%clk 01:27:07]} {[%emt 00:04:11]} g6 {[%clk 01:25:47]}
{[%emt 00:02:41]} 8. e4 {[%clk 01:20:34]} {[%emt 00:07:03]} Bg7 {[%clk
01:13:57]} {[%emt 00:12:19]} 9. Bb5+ {[%clk 01:16:57]} {[%emt 00:04:07]} Bd7
{[%clk 01:13:04]} {[%emt 00:01:23]} 10. Bd3 {[%clk 01:15:10]} {[%emt 00:02:18]}
O-O {[%clk 01:11:48]} {[%emt 00:01:46]} 11. h3 {[%emt 00:04:16]} b5 {[%clk
01:08:52]} {[%emt 00:00:02]} 12. O-O {[%clk 01:14:46]} {[%emt 00:01:53]} Re8
{[%clk 01:05:38]} 13. Re1 {[%clk 01:09:45]} {[%emt 00:04:41]} c4 14. Bf1 {[%clk
01:08:08]} {[%emt 00:06:03]} Na6 15. Bf4 {[%clk 01:03:44]} {[%emt 00:03:23]}
Nc5 {[%clk 01:01:37]} 16. Qc2 {[%clk 01:03:00]} {[%emt 00:07:35]} Qb6 17. Rad1
{[%clk 00:49:11]} {[%emt 00:01:53]} a5 18. e5 {[%clk 00:45:00]} {[%emt
00:18:05]} Bf5 19. Qc1 {[%emt 00:18:02]} Nb3 {[%emt 00:00:37]} 20. Qe3 {[%clk
00:44:52]} {[%emt 00:00:23]} Qb7 {[%clk 00:44:43]} {[%emt 00:00:28]} 21. g4
{[%clk 00:34:23]} {[%emt 00:11:01]} Bc2 {[%clk 00:44:29]} {[%emt 00:00:44]} 22.
Rd2 {[%clk 00:34:04]} {[%emt 00:00:49]} Nxd2 {[%clk 00:42:44]} {[%emt
00:02:14]} 23. Qxd2 {[%clk 00:29:43]} dxe5 24. Nxe5 {[%clk 00:29:17]} {[%emt
00:08:29]} Bd3 25. Bg2 {[%emt 00:05:43]} b4 {[%clk 00:34:19]} {[%emt 00:00:44]}
26. Na4 {[%emt 00:02:35]} Qb5 {[%clk 00:29:48]} {[%emt 00:03:51]} 27. b3 {[%emt
00:00:26]} Ne4 {[%clk 00:22:42]} 28. bxc4 {[%clk 00:24:59]} Qxa4 {[%clk
00:22:33]} {[%emt 00:12:13]} 29. Qxd3 {[%clk 00:19:58]} {[%emt 00:00:53]} Nc5
30. Qd4 {[%emt 00:07:38]} Nb3 {[%emt 00:01:15]} 31. Qd1 {[%clk 00:19:36]}
{[%emt 00:00:36]} bxa3 {[%clk 00:20:19]} {[%emt 00:00:15]} 32. d6 {[%clk
00:14:45]} {[%emt 00:05:20]} a2 {[%clk 00:10:44]} {[%emt 00:10:05]} 33. Bxa8
{[%clk 00:07:49]} {[%emt 00:07:28]} a1=Q {[%clk 00:07:29]} {[%emt 00:03:44]} 34.
d7 {[%clk 00:07:18]} {[%emt 00:01:00]} Rxa8 {[%clk 00:01:49]} {[%emt 00:06:11]}
35. d8=Q+ {[%clk 00:07:07]} {[%emt 00:00:41]} Rxd8 {[%clk 00:02:14]} {[%emt
00:00:05]} 36. Qxd8+ {[%clk 00:07:31]} {[%emt 00:00:05]} Bf8 {[%clk 00:02:38]}
{[%emt 00:00:07]} 37. Rxa1 {[%clk 00:07:08]} {[%emt 00:00:53]} Qxa1+ {[%clk
00:03:02]} {[%emt 00:00:05]} 38. Kg2 {[%clk 00:07:30]} {[%emt 00:00:08]} Qd4
{[%clk 00:00:51]} {[%emt 00:02:41]} 39. Nd7 {[%clk 00:02:06]} {[%emt 00:05:54]}
Qe4+ {[%clk 00:01:11]} {[%emt 00:00:10]} 40. Kg3 {[%clk 00:02:05]} {[%emt
00:00:31]} Qe7 {[%clk 00:01:31]} {[%emt 00:00:10]} 41. Qc8 {[%clk 00:02:11]}
{[%emt 00:00:24]} Nd4 {[%clk 00:23:02]} {[%emt 00:08:59]} 42. Bh6 {[%clk
00:30:47]} {[%emt 00:01:54]} Qa3+ {[%emt 00:17:27]} 43. Kh2 {[%emt 00:02:03]}
Ne6 {[%clk 00:12:09]} {[%emt 00:00:35]} 1-0